bitfinex-derivatives/quotes_SOLF0:USTF0_20250215
["timestamp","ask_amount","ask_price","bid_price","bid_amount"]
[1739649157320,0.03527616,194.24,194.21,1.5477]
[1739649157717,7.28951299,194.23,194.21,1.5477]
[1739649157914,12.43731299,194.23,194.21,1.5477]
[1739649164519,7.28951299,194.23,194.21,1.5477]
[1739649166622,0.03527616,194.24,194.21,1.5477]
[1739649167316,0.03527616,194.24,194.23,5.1477]
[1739649168620,0.03527616,194.24,194.21,1.5477]
[1739649169211,0.03527616,194.24,194.21,6.6957]
[1739649169817,0.03527616,194.24,194.21,1.5477]
[1739649170525,0.03527616,194.24,194.21,6.6959]
[1739649170720,0.03527616,194.24,194.21,1.5477]
[1739649171222,0.03527616,194.24,194.22,5.148]
[1739649176524,0.03527616,194.24,194.21,1.5477]
[1739649176729,5.18277616,194.24,194.21,1.5477]
[1739649176929,7.28951299,194.23,194.2,5.18286788]
[1739649178131,7.28951299,194.23,194.21,5.1482]
[1739649180132,7.28951299,194.23,194.2,0.03456788]
[1739649180133,7.28951299,194.23,194.22,5.148]
[1739649183037,0.03527616,194.24,194.23,5.1477]
[1739649183636,0.03527616,194.24,194.2,0.03456788]
[1739649184937,0.03527616,194.24,194.23,5.1477]
[1739649195937,0.03527616,194.24,194.22,5.1479]
[1739649197942,0.03527616,194.24,194.23,5.1477]
[1739649199646,0.03527616,194.24,194.2,0.03456788]
[1739649199848,0.03527616,194.24,194.22,5.1479]
[1739649203347,0.03527616,194.24,194.23,5.1477]
[1739649232862,0.03527616,194.24,194.22,5.1479]
[1739649233269,0.03527616,194.24,194.23,5.1477]
[1739649240677,0.03527616,194.24,194.21,5.148]
[1739649240876,0.03527616,194.24,194.2,0.03456788]
[1739649242177,0.03527616,194.24,194.23,5.1477]
[1739649247777,0.03527616,194.24,194.2,0.03456788]
[1739649248379,0.03527616,194.24,194.22,5.1478]
[1739649248581,7.28951299,194.23,194.2,0.03456788]
[1739649248984,7.28951299,194.21,194.2,0.03456788]
[1739649250684,7.28951299,194.21,194.2,5.18306788]
[1739649251582,7.28951299,194.21,194.2,0.03456788]
[1739649255889,12.43771299,194.21,194.2,0.03456788]
[1739649269099,5.1488,194.19,194.15,5.1498]
[1739649269293,7.28951299,194.16,194.15,5.1498]
[1739649286512,7.28951299,194.16,194.14,0.03247378]
[1739649288016,7.28951299,194.16,194.14,5.18257378]
[1739649289420,7.28951299,194.16,194.14,0.03247378]
[1739649295431,12.43911299,194.16,194.14,0.03247378]
[1739649296532,7.28951299,194.16,194.14,0.03247378]
[1739649303336,12.43921299,194.16,194.14,0.03247378]
[1739649305335,7.28951299,194.16,194.14,0.03247378]
[1739649307537,12.43911299,194.16,194.14,0.03247378]
[1739649312041,5.1498,194.15,194.14,0.03247378]
[1739649312736,7.28951299,194.16,194.14,0.03247378]
[1739649314741,7.28951299,194.16,194.14,5.18247378]
[1739649315943,7.28951299,194.16,194.14,0.03247378]
[1739649319642,7.28951299,194.16,194.14,5.18257378]
[1739649332650,7.28951299,194.16,194.14,0.03247378]
[1739649333552,5.1498,194.15,194.14,0.03247378]
[1739649335949,5.1506,194.13,194.09,5.1514]
[1739649336150,7.28951299,194.1,194.09,5.1514]
[1739649336452,7.28951299,194.1,194.06,1.5412]
[1739649337154,7.32461591,194.1,194.06,1.57778593]
[1739649337849,7.32461591,194.1,194.06,6.72978593]
[1739649338050,7.32461591,194.1,194.06,1.57778593]
[1739649339152,7.32461591,194.1,194.09,5.1514]
[1739649342457,7.32461591,194.1,194.06,1.57778593]
[1739649342657,7.32461591,194.1,194.08,5.1517]
[1739649342860,7.32461591,194.1,194.06,1.57778593]
[1739649343055,7.32461591,194.1,194.08,5.1514]
[1739649343960,7.32461591,194.1,194.06,1.57778593]
[1739649344160,7.32461591,194.1,194.09,5.1514]
[1739649351868,0.03510292,194.1,194.09,5.1514]
[1739649356771,0.03510292,194.1,194.08,5.1516]
[1739649357172,0.03510292,194.1,194.06,8.86729892]
[1739649357969,0.03510292,194.1,194.07,5.1519]
[1739649358163,0.03510292,194.1,194.06,8.86729892]
[1739649360172,0.03510292,194.1,194.09,5.1514]
[1739649363779,7.32461591,194.1,194.07,5.1519]
[1739649363981,7.32461591,194.1,194.06,1.57778593]
[1739649366085,0.03510292,194.1,194.09,5.1514]
[1739649371789,7.28951299,194.18,194.08,7.28951299]
[1739649372094,7.28951299,194.18,194.11,7.28951299]
[1739649372590,7.28951299,194.16,194.13,5.1502]
[1739649372787,7.28951299,194.16,194.11,7.28951299]
[1739649372993,7.32197658,194.16,194.14,5.1499]
[1739649373691,7.32197658,194.16,194.13,0.03930958]
[1739649373882,7.32197658,194.16,194.15,5.1498]
[1739649374389,0.03246359,194.16,194.15,5.1498]
[1739649374785,0.03246359,194.16,194.14,5.1501]
[1739649375085,7.32197658,194.16,194.14,5.1501]
[1739649377890,7.32197658,194.16,194.13,0.03930958]
[1739649378694,7.32197658,194.16,194.14,5.1501]
[1739649381799,7.32197658,194.16,194.13,5.18960958]
[1739649383396,7.32197658,194.16,194.13,0.03930958]
[1739649383597,7.32197658,194.16,194.14,5.1501]
[1739649384796,7.32197658,194.16,194.13,0.03930958]
[1739649384997,7.28951299,194.14,194.13,5.18960958]
[1739649388500,7.28951299,194.14,194.13,0.03930958]
[1739649390998,12.43961299,194.14,194.13,0.03930958]
[1739649392204,7.28951299,194.14,194.13,0.03930958]
[1739649392503,12.47157658,194.16,194.13,0.03930958]
[1739649395910,5.1499,194.15,194.13,0.03930958]
[1739649396808,7.28951299,194.14,194.13,0.03930958]
[1739649398506,12.43961299,194.14,194.13,0.03930958]
[1739649400305,7.28951299,194.14,194.13,0.03930958]
[1739649404611,5.1499,194.15,194.13,0.03930958]
[1739649407513,7.32197658,194.16,194.13,0.03930958]
[1739649409112,7.32197658,194.16,194.14,5.1501]
[1739649410615,7.32197658,194.16,194.13,5.18960958]
[1739649412216,12.47167658,194.16,194.13,0.03930958]
[1739649415117,12.47167658,194.16,194.13,5.18960958]
[1739649419219,7.32197658,194.16,194.13,5.18960958]
[1739649420325,12.47157658,194.16,194.13,5.18960958]
[1739649420525,7.32197658,194.16,194.13,5.18960958]
[1739649425723,12.47167658,194.16,194.13,5.18960958]
[1739649434142,0.03246359,194.16,194.15,12.43931299]
[1739649434438,7.28951299,194.22,194.15,7.28951299]
[1739649435437,0.03596479,194.2,194.15,7.28951299]
[1739649436335,0.03596479,194.2,194.17,5.1492]
[1739649436844,5.18456479,194.2,194.15,7.28951299]
[1739649437036,7.32547778,194.2,194.15,7.28951299]
[1739649437240,7.32547778,194.2,194.14,1.5453]
[1739649438044,5.1488,194.19,194.15,5.1498]
[1739649440042,5.1491,194.18,194.14,1.5453]
[1739649440243,7.28951299,194.16,194.13,5.18950958]
[1739649440445,7.28951299,194.18,194.13,0.03930958]
[1739649440746,7.28951299,194.18,194.13,7.32882257]
[1739649441546,7.28951299,194.18,194.15,5.1496]
[1739649443351,12.47397778,194.2,194.13,7.32882257]
[1739649443550,7.32547778,194.2,194.15,7.28951299]
[1739649443846,7.32547778,194.2,194.17,5.1492]
[1739649444746,12.47407778,194.2,194.16,5.1495]
[1739649446950,7.32547778,194.2,194.14,1.6663]
[1739649447149,7.32547778,194.2,194.13,7.32882257]
[1739649447150,5.1493,194.17,194.13,5.18950958]
[1739649448348,5.1493,194.17,194.14,5.1501]
[1739649449053,7.28951299,194.18,194.15,5.1498]
[1739649449255,7.32547778,194.2,194.13,7.32882257]
[1739649450255,5.149,194.19,194.15,5.1498]
[1739649452351,5.149,194.19,194.13,7.32882257]
[1739649452651,5.149,194.19,194.15,5.1496]
[1739649453857,5.1491,194.18,194.15,5.1496]
[1739649454657,5.1491,194.18,194.14,5.15]
[1739649454953,7.32547778,194.2,194.13,7.32882257]
[1739649455154,5.1488,194.19,194.16,5.1495]
[1739649457159,5.1491,194.18,194.13,7.32882257]
[1739649457855,5.1491,194.18,194.14,5.1498]
[1739649458159,5.1491,194.18,194.13,7.32882257]
[1739649459158,5.1491,194.18,194.15,5.1498]
[1739649460461,5.1488,194.19,194.16,5.1495]
[1739649461861,7.32547778,194.2,194.14,5.15]
[1739649462963,5.1492,194.18,194.14,5.15]
[1739649465064,5.1492,194.18,194.13,7.32882257]
[1739649465360,5.1492,194.18,194.15,5.1497]
[1739649468264,5.1492,194.18,194.14,5.15]
[1739649469462,5.1492,194.18,194.15,5.1498]
[1739649470157,5.1488,194.19,194.15,5.1498]
[1739649471765,7.32547778,194.2,194.14,5.1501]
[1739649471962,7.28951299,194.18,194.13,0.03930958]
[1739649472363,5.1496,194.16,194.13,5.18960958]
[1739649473170,12.47407778,194.2,194.16,5.1496]
[1739649473363,0.03596479,194.2,194.15,7.28951299]
[1739649475072,0.03596479,194.2,194.17,5.1492]
[1739649475268,7.32547778,194.2,194.17,5.1492]
[1739649476871,7.32547778,194.2,194.15,5.1497]
[1739649477369,12.47407778,194.2,194.15,5.1497]
[1739649479875,7.32547778,194.2,194.15,5.1497]
[1739649480073,5.1488,194.19,194.15,5.1497]
[1739649486779,7.32547778,194.2,194.15,5.1497]
[1739649487080,5.1491,194.18,194.15,5.1497]
[1739649491680,5.1491,194.18,194.14,5.15]
[1739649492884,5.1496,194.17,194.13,7.32882257]
[1739649493181,7.28951299,194.18,194.13,0.03930958]
[1739649495182,5.1498,194.16,194.13,0.03930958]
[1739649495774,7.28951299,194.18,194.13,0.03930958]
[1739649498084,5.1494,194.17,194.13,5.18970958]
[1739649498487,5.1494,194.17,194.13,0.03930958]
[1739649499281,12.43861299,194.18,194.14,5.1501]
[1739649501987,12.43861299,194.18,194.15,5.1498]
[1739649506792,7.28951299,194.18,194.15,5.1498]
[1739649509499,7.28951299,194.18,194.16,5.1495]
[1739649509894,5.1488,194.19,194.16,5.1495]
[1739649510699,5.1488,194.19,194.13,7.32882257]
[1739649510700,12.47407778,194.2,194.13,7.32882257]
[1739649511402,12.47407778,194.2,194.16,5.1494]
[1739649511601,12.47407778,194.2,194.13,7.32882257]
[1739649513202,7.32547778,194.2,194.15,7.28951299]
[1739649513704,7.32547778,194.2,194.17,5.1493]
[1739649514202,7.32547778,194.2,194.15,7.28951299]
[1739649514398,7.32547778,194.2,194.16,5.1495]
[1739649514602,7.32547778,194.2,194.13,7.32882257]
[1739649515503,7.32547778,194.2,194.15,5.1498]
[1739649516009,7.32547778,194.2,194.13,7.32882257]
[1739649516199,7.32547778,194.2,194.16,5.1495]
[1739649516604,12.47407778,194.2,194.16,5.1495]
[1739649516998,7.32547778,194.2,194.16,5.1495]
[1739649518007,5.1488,194.19,194.16,5.1495]
[1739649523112,0.03596479,194.2,194.15,7.28951299]
[1739649523413,0.03596479,194.2,194.17,7.28951299]
[1739649524713,0.03596479,194.2,194.18,5.149]
[1739649524912,0.03596479,194.2,194.17,7.28951299]
[1739649525111,0.03596479,194.2,194.17,7.32407031]
[1739649526012,0.03596479,194.2,194.19,5.1488]
[1739649530416,0.03596479,194.2,194.19,12.43831299]
[1739649532213,5.1472,194.25,194.19,7.28951299]
[1739649532414,5.1472,194.25,194.21,12.43761299]
[1739649533511,5.1475,194.24,194.21,7.32785864]
[1739649535823,5.1478,194.23,194.21,7.32785864]
[1739649539123,0.03881052,194.25,194.21,0.03834565]
[1739649539328,5.148,194.22,194.21,0.03834565]
[1739649543531,12.43751299,194.22,194.21,0.03834565]
[1739649548530,7.28951299,194.22,194.12,5.1506]
[1739649548732,7.28951299,194.18,194.12,5.1506]
[1739649548933,7.28951299,194.2,194.13,12.43961299]
[1739649549525,5.1491,194.18,194.14,5.15]
[1739649549729,5.18545117,194.18,194.15,0.03249819]
[1739649552631,0.03635117,194.18,194.15,0.03249819]
[1739649552937,0.03635117,194.18,194.16,5.1495]
[1739649553937,0.03635117,194.18,194.15,12.47181118]
[1739649557641,5.18545117,194.18,194.15,7.32201118]
[1739649560047,0.03635117,194.18,194.16,5.1496]
[1739649562847,0.03635117,194.18,194.17,12.43881299]
[1739649572362,0.03635117,194.18,194.17,7.28951299]
[1739649572563,0.03635117,194.18,194.15,7.32201118]
[1739649573058,0.03635117,194.18,194.16,5.1496]
[1739649573361,0.03635117,194.18,194.15,7.32201118]
[1739649573762,5.18555117,194.18,194.15,0.03249819]
[1739649574363,5.1494,194.17,194.15,0.03249819]
[1739649578968,0.03635117,194.18,194.15,0.03249819]
[1739649579267,5.1496,194.16,194.15,0.03249819]
[1739649581266,0.03635117,194.18,194.15,0.03249819]
[1739649581463,5.1494,194.17,194.15,0.03249819]
[1739649583072,5.18545117,194.18,194.15,0.03249819]
[1739649585075,5.18545117,194.18,194.15,5.18229819]
[1739649587971,0.03635117,194.18,194.16,5.1494]
[1739649588477,0.03635117,194.18,194.17,7.28951299]
[1739649590176,0.03635117,194.18,194.17,12.43881299]
[1739649596172,200.28951299,194.26,194.17,7.28951299]
[1739649596374,12.43651299,194.26,194.22,5.1479]
[1739649596877,7.28951299,194.26,194.2,7.28951299]
[1739649597281,7.28951299,194.26,194.22,7.28951299]
[1739649597481,0.03304669,194.25,194.22,12.43731299]
[1739649597682,0.03304669,194.25,194.22,7.28951299]
[1739649599179,0.03304669,194.25,194.24,5.1474]
[1739649603882,0.03304669,194.25,194.24,12.43691299]
[1739649608678,7.28951299,194.34,194.24,7.28951299]
[1739649608876,7.28951299,194.34,194.28,7.28951299]
[1739649609283,5.1445,194.36,194.3,7.28951299]
[1739649609489,7.28951299,194.38,194.32,7.28951299]
[1739649609987,0.03386053,194.37,194.33,5.18226065]
[1739649610189,0.03386053,194.37,194.34,7.28951299]
[1739649610488,0.03386053,194.37,194.35,5.1445]
[1739649610883,0.03386053,194.37,194.34,7.28951299]
[1739649611586,0.03386053,194.37,194.33,0.03736065]
[1739649611889,7.28951299,194.36,194.33,0.03736065]
[1739649612688,7.28951299,194.34,194.26,7.28951299]
[1739649612890,7.28951299,194.3,194.24,7.28951299]
[1739649613389,12.43541299,194.3,194.24,12.43691299]
[1739649613790,7.28951299,194.32,194.26,7.28951299]
[1739649614088,0.03282587,194.29,194.26,7.28951299]
[1739649615089,0.03282587,194.29,194.26,12.43641299]
[1739649615488,0.03282587,194.29,194.26,7.28951299]
[1739649615791,5.17902587,194.29,194.26,7.28951299]
[1739649615990,0.03282587,194.29,194.25,0.03592403]
[1739649616289,5.17892587,194.29,194.25,0.03592403]
[1739649616490,5.17892587,194.29,194.26,7.28951299]
[1739649616693,0.03282587,194.29,194.26,7.28951299]
[1739649616891,0.03282587,194.29,194.28,7.28951299]
[1739649617594,0.03282587,194.29,194.26,12.43621299]
[1739649619797,0.03282587,194.29,194.27,5.1466]
[1739649622194,0.03282587,194.29,194.28,5.1464]
[1739649622897,0.03282587,194.29,194.28,12.43591299]
[1739649625294,7.28951299,194.38,194.31,5.1454]
[1739649625602,7.28951299,194.4,194.34,7.28951299]
[1739649626300,5.1439,194.38,194.34,7.28951299]
[1739649626496,5.1439,194.38,194.35,0.03408843]
[1739649626692,0.03494893,194.39,194.35,0.03408843]
[1739649626894,5.1438,194.38,194.35,0.03408843]
[1739649628997,5.144,194.37,194.35,0.03408843]
[1739649630595,5.1443,194.36,194.35,0.03408843]
[1739649630900,0.03494893,194.39,194.35,0.03408843]
[1739649631492,5.1443,194.36,194.35,0.03408843]
[1739649632900,12.43381299,194.36,194.35,0.03408843]
[1739649633102,5.1456,194.32,194.28,7.28951299]
[1739649634002,7.28951299,194.34,194.28,7.28951299]
[1739649634208,0.03782283,194.32,194.28,7.32388648]
[1739649634807,5.1457,194.31,194.28,7.32388648]
[1739649635198,5.18322283,194.32,194.28,12.47028648]
[1739649638800,5.18322283,194.32,194.28,7.32388648]
[1739649639105,5.18322283,194.32,194.28,0.03437349]
[1739649639106,7.32733582,194.32,194.28,0.03437349]
[1739649640202,5.1461,194.3,194.28,0.03437349]
[1739649640403,7.32733582,194.32,194.28,0.03437349]
[1739649642101,5.1461,194.29,194.28,0.03437349]
[1739649642306,7.32733582,194.32,194.28,0.03437349]
[1739649644107,5.1459,194.3,194.28,0.03437349]
[1739649647612,5.1461,194.29,194.28,0.03437349]
[1739649648212,5.1459,194.3,194.28,0.03437349]
[1739649663326,5.1457,194.31,194.28,0.03437349]
[1739649663520,0.03782283,194.32,194.29,5.1459]
[1739649664324,0.03782283,194.32,194.28,7.32388648]
[1739649664524,0.03782283,194.32,194.3,5.1458]
[1739649665022,0.03782283,194.32,194.31,5.1456]
[1739649666324,0.03782283,194.32,194.3,5.1458]
[1739649666523,0.03782283,194.32,194.28,7.32388648]
[1739649669126,0.03782283,194.32,194.31,5.1456]
[1739649674533,0.8811,194.43,194.3,7.28951299]
[1739649674534,7.28951299,194.42,194.3,7.28951299]
[1739649674734,7.28951299,194.44,194.37,7.28951299]
[1739649675039,7.28951299,194.44,194.39,5.1433]
[1739649675635,5.17559273,194.43,194.4,0.0363899]
[1739649675932,0.03319273,194.43,194.4,0.0363899]
[1739649676130,0.03319273,194.43,194.41,7.28951299]
[1739649678034,0.03319273,194.43,194.41,12.43241299]
[1739649680239,0.03319273,194.43,194.41,7.28951299]
[1739649681438,0.03319273,194.43,194.4,0.0363899]
[1739649682136,5.1429,194.41,194.4,0.0363899]
[1739649682335,7.28951299,194.42,194.32,39.18325229]
[1739649682530,7.28951299,194.37,194.31,7.28951299]
[1739649683440,7.28951299,194.35,194.29,1.6671]
[1739649683640,5.1453,194.33,194.32,0.03945759]
[1739649684038,12.43481299,194.33,194.32,0.03945759]
[1739649684935,12.43431299,194.35,194.32,0.03945759]
[1739649685537,0.03265603,194.36,194.33,7.28951299]
[1739649685738,0.03265603,194.36,194.35,7.28951299]
[1739649686437,0.03265603,194.36,194.32,0.03945759]
[1739649686636,5.1448,194.34,194.32,0.03945759]
[1739649686940,7.28951299,194.35,194.32,0.03945759]
[1739649687946,12.43461299,194.33,194.32,0.03945759]
[1739649695448,5.1462,194.29,194.25,5.1472]
[1739649695849,7.28951299,194.3,194.23,8.88021299]
[1739649696147,5.1464,194.28,194.23,6.7382]
[1739649696349,7.28951299,194.3,194.23,1.5907]
[1739649696550,5.146,194.3,194.25,5.1471]
[1739649696750,0.03504742,194.28,194.25,5.18343703]
[1739649700950,0.03504742,194.28,194.26,5.1469]
[1739649705953,0.03504742,194.28,194.25,5.18343703]
[1739649706754,12.43621299,194.27,194.25,0.03633703]
[1739649707154,7.28951299,194.27,194.25,0.03633703]
[1739649709057,12.43641299,194.27,194.25,0.03633703]
[1739649711561,5.1469,194.26,194.25,0.03633703]
[1739649715562,7.28951299,194.27,194.25,5.18333703]
[1739649717061,7.28951299,194.27,194.25,0.03633703]
[1739649717964,7.28951299,194.27,194.25,5.18353703]
[1739649719358,0.03504742,194.28,194.26,5.1469]
[1739649720464,0.03504742,194.28,194.25,0.03633703]
[1739649720766,5.18144742,194.28,194.25,5.18343703]
[1739649721069,0.03504742,194.28,194.25,5.18343703]
[1739649721271,0.03504742,194.28,194.26,5.1467]
[1739649723171,5.18154742,194.28,194.25,0.03633703]
[1739649724171,5.1469,194.26,194.25,0.03633703]
[1739649729475,7.28951299,194.27,194.17,1.5094]
[1739649729772,7.28951299,194.21,194.17,1.5094]
[1739649730175,7.28951299,194.21,194.17,6.6585]
[1739649730372,7.28951299,194.21,194.17,1.5094]
[1739649730570,0.03790777,194.21,194.17,1.54704937]
[1739649731072,0.03790777,194.21,194.18,5.149]
[1739649731273,0.03790777,194.21,194.17,1.54704937]
[1739649732075,0.03790777,194.21,194.19,5.1487]
[1739649733179,0.03790777,194.21,194.17,1.54704937]
[1739649733379,0.03790777,194.21,194.2,5.1485]
[1739649734880,0.03790777,194.21,194.17,8.83656236]
[1739649735075,0.03790777,194.21,194.19,5.1487]
[1739649735481,7.32742076,194.21,194.17,1.54704937]
[1739649736474,7.32742076,194.21,194.18,5.1488]
[1739649737079,7.32742076,194.21,194.17,6.69624937]
[1739649737779,7.32742076,194.21,194.18,5.1489]
[1739649740979,12.47582076,194.21,194.17,1.54704937]
[1739649742081,7.32742076,194.21,194.17,1.54704937]
[1739649742984,7.32742076,194.21,194.18,5.149]
[1739649743379,12.47572076,194.21,194.17,6.69624937]
[1739649745285,7.32742076,194.21,194.17,1.54704937]
[1739649746284,12.47572076,194.21,194.18,5.149]
[1739649746785,7.32742076,194.21,194.18,5.149]
[1739649746986,0.03790777,194.21,194.19,5.1488]
[1739649747187,0.03790777,194.21,194.17,1.54704937]
[1739649747785,0.03790777,194.21,194.18,5.1488]
[1739649748688,5.18620777,194.21,194.18,5.1488]
[1739649748989,0.03790777,194.21,194.18,5.1488]
[1739649750383,0.03790777,194.21,194.19,5.1485]
[1739649755288,0.03790777,194.21,194.2,5.1485]
[1739649757289,7.28951299,194.25,194.19,7.28951299]
[1739649757488,7.28951299,194.25,194.23,5.1477]
[1739649764096,7.28951299,194.25,194.22,0.03883513]
[1739649764996,5.1475,194.24,194.22,0.03883513]
[1739649767598,12.43721299,194.23,194.22,0.03883513]
[1739649776406,12.43721299,194.23,194.22,3.513e-05]
[1739649776606,7.28951299,194.23,194.13,5.1501]
[1739649776808,7.28951299,194.17,194.13,5.1501]
[1739649777005,7.28951299,194.17,194.11,7.28951299]
[1739649777302,7.28951299,194.17,194.13,5.1502]
[1739649777706,7.32603306,194.17,194.13,5.18459486]
[1739649779409,7.32603306,194.17,194.14,5.1501]
[1739649779909,7.32603306,194.17,194.13,0.03439486]
[1739649780209,5.1496,194.16,194.13,0.03439486]
[1739649780906,12.47553306,194.17,194.13,5.18469486]
[1739649781108,12.47553306,194.17,194.13,0.03439486]
[1739649781606,0.03652007,194.17,194.15,5.1497]
[1739649782006,0.03652007,194.17,194.13,7.32390785]
[1739649782505,0.03652007,194.17,194.14,5.1499]
[1739649782810,0.03652007,194.17,194.13,7.32390785]
[1739649783008,0.03652007,194.17,194.15,5.1497]
[1739649787210,0.03652007,194.17,194.13,7.32390785]
[1739649787414,0.03652007,194.17,194.16,5.1496]
[1739649791416,12.43731299,194.23,194.19,5.1485]
[1739649791616,12.43731299,194.23,194.15,10.52431299]
[1739649792018,7.28951299,194.23,194.15,10.52431299]
[1739649792218,7.28951299,194.23,194.2,5.1484]
[1739649792518,7.32758955,194.23,194.2,5.18765241]
[1739649793520,7.32758955,194.23,194.2,0.03925241]
[1739649793719,0.03807656,194.23,194.21,5.1481]
[1739649794320,0.03807656,194.23,194.2,0.03925241]
[1739649794321,0.03807656,194.23,194.22,5.148]
[1739649796121,0.03807656,194.23,194.2,0.03925241]
[1739649796316,0.03807656,194.23,194.2,5.18755241]
[1739649796517,7.32758955,194.23,194.2,0.03925241]
[1739649796717,12.47538955,194.23,194.2,0.03925241]
[1739649798422,5.1481,194.22,194.2,0.03925241]
[1739649798724,7.28951299,194.21,194.2,0.03925241]
[1739649799022,12.43771299,194.21,194.2,0.03925241]
[1739649800825,7.28951299,194.21,194.2,0.03925241]
[1739649801523,12.43771299,194.21,194.2,0.03925241]
[1739649804027,12.47558955,194.23,194.2,0.03925241]
[1739649804327,7.32758955,194.23,194.2,0.03925241]
[1739649806126,5.1482,194.22,194.2,0.03925241]
[1739649806426,7.32758955,194.23,194.2,0.03925241]
[1739649807025,12.47548955,194.23,194.2,0.03925241]
[1739649808230,5.1482,194.22,194.2,0.03925241]
[1739649808424,7.32758955,194.23,194.2,0.03925241]
[1739649809928,5.1482,194.22,194.2,0.03925241]
[1739649818842,7.32758955,194.23,194.2,0.03925241]
[1739649819047,0.03807656,194.23,194.2,0.03925241]
[1739649819546,7.32758955,194.23,194.2,0.03925241]
[1739649820240,12.47538955,194.23,194.2,0.03925241]
[1739649820947,7.32758955,194.23,194.2,0.03925241]
[1739649821151,5.148,194.22,194.2,0.03925241]
[1739649826052,7.32758955,194.23,194.2,0.03925241]
[1739649826252,12.47538955,194.23,194.2,0.03925241]
[1739649827948,5.18587656,194.23,194.2,0.03925241]
[1739649828852,0.03807656,194.23,194.2,5.18765241]
[1739649831857,0.03807656,194.23,194.22,5.148]
[1739649833253,7.3310097,194.3,194.25,5.147]
[1739649833649,7.3310097,194.3,194.24,5.1474]
[1739649834255,0.03917229,194.29,194.25,0.03956619]
[1739649835059,5.1464,194.28,194.25,0.03956619]
[1739649835557,0.03917229,194.29,194.25,0.03956619]
[1739649835760,5.1467,194.27,194.25,0.03956619]
[1739649838162,5.1469,194.26,194.25,0.03956619]
[1739649838365,12.4779097,194.26,194.25,0.03956619]
[1739649839159,7.3310097,194.28,194.25,0.03956619]
[1739649840264,0.03917229,194.29,194.25,0.03956619]
[1739649840862,5.18537229,194.29,194.25,5.18656619]
[1739649841360,0.03917229,194.29,194.25,7.37057589]
[1739649841963,0.03917229,194.29,194.27,7.3310097]
[1739649843073,0.03917229,194.29,194.28,5.1464]
[1739649844167,7.3310097,194.34,194.31,5.1455]
[1739649845267,7.3686294,194.34,194.31,5.18472143]
[1739649845669,12.5134294,194.34,194.31,0.03922143]
[1739649846467,7.3686294,194.34,194.31,5.18472143]
[1739649846668,0.0376197,194.34,194.31,5.18472143]
[1739649848470,0.0376197,194.34,194.31,0.03922143]
[1739649850666,0.0376197,194.34,194.31,5.18472143]
[1739649852571,7.3686294,194.34,194.31,0.03922143]
[1739649852768,7.3310097,194.32,194.31,0.03922143]
[1739649853173,12.4763097,194.32,194.31,0.03922143]
[1739649856174,7.3310097,194.32,194.31,0.03922143]
[1739649858880,0.0376197,194.34,194.31,0.03922143]
[1739649861678,0.0376197,194.34,194.32,5.1453]
[1739649862574,0.0376197,194.34,194.31,5.18472143]
[1739649867886,0.0376197,194.34,194.32,5.1452]
[1739649870485,0.0376197,194.34,194.33,5.1451]
[1739649871088,0.0376197,194.34,194.31,0.03922143]
[1739649871289,0.0376197,194.34,194.32,5.1453]
[1739649873090,0.0376197,194.34,194.33,5.1451]
[1739649884401,5.1429,194.42,194.38,5.1436]
[1739649885094,7.32032896,194.43,194.36,7.32032896]
[1739649885296,12.46282896,194.43,194.39,5.1434]
[1739649885501,7.32032896,194.43,194.36,7.32032896]
[1739649885697,0.03500718,194.43,194.41,5.1427]
[1739649885905,7.32032896,194.45,194.38,7.32032896]
[1739649886104,0.03575399,194.44,194.4,0.03248862]
[1739649886702,0.03575399,194.44,194.41,5.1428]
[1739649887500,0.03575399,194.44,194.4,0.03248862]
[1739649888110,0.03575399,194.44,194.4,5.17558862]
[1739649888306,0.03575399,194.44,194.4,0.03248862]
[1739649890005,5.1426,194.43,194.4,0.03248862]
[1739649891303,5.1427,194.42,194.4,0.03248862]
[1739649891510,0.03575399,194.44,194.4,5.17568862]
[1739649892009,0.03575399,194.44,194.4,0.03248862]
[1739649894009,5.1426,194.43,194.4,0.03248862]
[1739649896209,0.03575399,194.44,194.4,0.03248862]
[1739649896411,5.1427,194.42,194.4,0.03248862]
[1739649897312,5.1425,194.43,194.4,0.03248862]
[1739649899208,5.1425,194.43,194.4,5.17568862]
[1739649899705,5.1425,194.43,194.4,0.03248862]
[1739649900010,5.1427,194.42,194.4,0.03248862]
[1739649900811,5.1424,194.43,194.4,0.03248862]
[1739649901109,0.03575399,194.44,194.4,0.03248862]
[1739649901507,0.03575399,194.44,194.4,7.35281758]
[1739649901908,0.03575399,194.44,194.43,5.1424]
[1739649906216,0.03575399,194.44,194.42,12.46292896]
[1739649906416,0.03575399,194.44,194.42,7.32032896]
[1739649906617,0.03575399,194.44,194.4,0.03248862]